[Event "1st FIDE Olympiad DIS 2023"]
[Site "Belgrade"]
[Date "2023.02.04"]
[Round "6.6"]
[White "Sargissyan, Sargis"]
[Black "Mate, Balazs"]
[Result "1-0"]
[ECO "B76"]
[WhiteElo "2221"]
[BlackElo "2015"]
[Annotator "TA"]
[PlyCount "113"]
[EventDate "2023.01.30"]
[EventType "team-tourn"]
[EventCountry "SRB"]
[SourceTitle "playchess.com"]
[Source "ChessBase"]
[SourceQuality "1"]
[WhiteTeam "Armenia"]
[BlackTeam "Hungary"]
[WhiteTeamCountry "ARM"]
[BlackTeamCountry "HUN"]
[TimeControl "40/5400+30:1800+30"]

{[%evp 16,113,48,39,43,-1,14,13,33,18,41,0,33,33,22,12,12,11,28,10,41,33,35,34,37,31,42,41,74,75,75,43,79,51,58,58,103,69,66,10,27,0,0,0,63,52,222,233,347,347,343,342,320,320,261,8,8,6,7,0,0,0,0,0,0,0,7,18,54,62,72,66,202,86,200,177,161,164,1159,1156,29969,29970,29970,29968,29956,12830,29989,29990,29990,29991,29991,29991,29991,29992,29992,29993,29993,29994,29995,29996]} 1. e4 {[%emt 0:00:02]} c5 {[%emt 0:00:13]} 2. Nf3 {[%emt 0:00:07]} Nc6 {[%emt 0:00:20]} 3. d4 {[%emt 0:00:08]} cxd4 {[%emt 0:00:16]} 4. Nxd4 {[%emt 0:00:05]} g6 {[%emt 0:00:21]} 5. Nc3 {[%emt 0:00:13]} Bg7 {[%emt 0:00:24]} 6. Be3 {[%emt 0:00:06]} Nf6 {[%emt 0:00:57]} 7. Bc4 {[%emt 0:00:20]} d6 {[%emt 0:05:48]} 8. f3 {[%emt 0:00:31]} O-O {[%emt 0:00:18]} 9. Bb3 {[%emt 0:00:30]} Na5 {[%emt 0:01:47] B76: Sicilian Dragon: Yugoslav Attack, 9 g4 and 9 0-0-0.} 10. O-O {[%emt 0:32:48]} b6 {[%emt 0:02:38]} 11. Qd2 {[%emt 0:07:57]} Bb7 {[%emt 0:08:13] [#] The position is equal.} 12. Rad1 $146 {[%emt 0:07:55]} ({Predecessor:} 12. a3 Rc8 13. Ba2 Nd7 14. Bh6 Bxh6 15. Qxh6 Rc5 16. g4 Ne5 17. Nce2 Nac4 18. b4 {0-1 Aljabri,S (1562)-Al Zadjali,A (1698) OMA-chT Clubs 2022 (3.3)}) 12... Rc8 {[%emt 0:04:24]} 13. Qf2 {[%emt 0:10:54]} (13. Bh6 {feels hotter.} Qc7 14. Bxg7 Kxg7 15. Rfe1) 13... Nxb3 {[%emt 0:05:07]} 14. axb3 {[%emt 0:00:30]} Qc7 {[%emt 0:02:35]} 15. Ncb5 {[%emt 0:07:04]} Qb8 {[%emt 0:01:55]} 16. c4 {[%emt 0:00:22]} a6 {[%emt 0:02:54]} 17. Nc3 {[%emt 0:00:06]} Bc6 {[%emt 0:04:05]} 18. Nd5 {[%emt 0:03:01]} Nxd5 {[%emt 0:03:05]} 19. cxd5 {[%emt 0:01:40]} Bd7 {[%emt 0:02:21]} 20. Qd2 {[%emt 0:05:50]} Qb7 {[%emt 0:08:03]} 21. Bh6 {[%emt 0:02:36]} b5 {[%emt 0:03:37]} 22. Bxg7 {[%emt 0:00:23]} Kxg7 {[%emt 0:00:03]} 23. h4 {[%emt 0:00:21][%cal Bh2h4,Bh4h5,Bh5h6][%mdl 32]} Qb6 {[%emt 0:09:47] [#]} 24. h5 $1 {[%emt 0:01:50]} a5 {[%emt 0:01:11]} 25. Qe3 {[%emt 0:02:51]} Qb7 {[%emt 0:02:48]} 26. h6+ {[%emt 0:04:02]} Kg8 {[%emt 0:00:12] [#]} 27. Nf5 {[%emt 0:01:21]} Bxf5 {[%emt 0:14:35]} (27... gxf5 $2 28. Qg5+ Kh8 29. Qg7#) (27... Rce8 $5) 28. exf5 {[%emt 0:00:07]} Rc7 {[%emt 0:00:30]} 29. f6 {[%emt 0:03:35]} Re8 {[%emt 0:05:15]} (29... exf6 $11 30. Qd4 Qa7) 30. Rfe1 $14 {[%emt 0:01:36] White is more active.} e5 $2 {[%emt 0:02:49] Prevents Qf4.} ({Black should try} 30... Qa7 $14) 31. dxe6 $18 {[%emt 0:00:26][%mdl 64] Discovered Attack} Rxe6 {[%emt 0:02:08] [#]} (31... fxe6 $142 32. Rxd6 Qa7 33. Qxa7 Rxa7) 32. Rxd6 $3 {[%emt 0:01:31][%mdl 576] Threatening mate with Rd8+. Deflection, Back Rank} Qc8 {[%emt 0:05:44][%cal Oe6e3] Wards off Rd8+} 33. Rxe6 {[%emt 0:01:07]} fxe6 {[%emt 0:00:19][%mdl 4096] Endgame KQR-KQR} 34. Rd1 {[%emt 0:01:10]} (34. Qxe6+ $6 Qxe6 35. Rxe6 Kf7 $18) 34... Kf7 {[%emt 0:00:40]} 35. Qd4 {[%emt 0:02:39] Against Rd7} (35. g4 $18) 35... Rc1 $11 {[%emt 0:01:20]} 36. Qa7+ {[%emt 0:00:31]} Qc7 $1 {[%emt 0:00:18]} 37. Qd4 {[%emt 0:02:07]} (37. Qxc7+ {simplifies} Rxc7 38. Ra1 Ra7 39. Rc1) 37... Rxd1+ {[%emt 0:01:03]} 38. Qxd1 {[%emt 0:00:04] KQ-KQ} Qc5+ {[%emt 0:00:23]} 39. Kf1 {[%emt 0:00:17]} Kxf6 {[%emt 0:01:07]} 40. Qd8+ {[%emt 0:00:13]} Qe7 {[%emt 0:00:26]} 41. Qxa5 {[%emt 0:30:44]} Qd7 {[%emt 0:01:14]} 42. Qc3+ $1 {[%emt 0:00:00]} Kg5 {[%emt 0:05:57]} 43. Qe3+ {[%emt 0:00:00]} Kf6 {[%emt 0:01:04] [#]} ({Better is} 43... Kh5 $1 $14) 44. Qf4+ $1 $18 {[%emt 0:00:00]} Ke7 {[%emt 0:00:20]} 45. Ke2 {[%emt 0:00:00] Prevents Qd3+} Qc6 {[%emt 0:02:05]} 46. Qb4+ {[%emt 0:00:00]} Kf7 $2 {[%emt 0:00:44]} (46... Kd7 47. Qd4+ Ke7) 47. Qc3 {[%emt 0:00:00]} Qb6 {[%emt 0:14:49]} 48. Qg7+ {[%emt 0:00:00]} Ke8 {[%emt 0:00:21]} 49. Qg8+ {[%emt 0:00:00]} Ke7 {[%emt 0:00:10]} 50. Qxh7+ {[%emt 0:00:00]} Kf6 {[%emt 0:00:21]} 51. Qg7+ {[%emt 0:00:00] White mates.} Kf5 {[%emt 0:01:10]} 52. h7 {[%emt 0:00:00]} Qg1 {[%emt 0:01:04]} 53. Qf7+ {[%emt 0:00:00]} (53. h8=R Qxg2+ 54. Kd3 (54. Ke3 Qg1+ 55. Kd3 Qf1+ 56. Ke3 Qg1+ 57. Kd3 Qf1+ 58. Ke3 Qg1+ $11) 54... Qf1+ 55. Ke3 Qg1+ 56. Kd3 Qf1+ 57. Ke3 Qg1+ 58. Ke2 Qg2+ 59. Kd3 (59. Ke3 Qg1+ $11) 59... Qf1+ $11) 53... Kg5 {[%emt 0:00:57]} 54. f4+ {[%emt 0:00:00]} (54. h8=R Qxg2+ 55. Ke3 Qg1+ 56. Ke4 Qe1+ 57. Kd4 Qf2+ 58. Ke5 Qxb2+ 59. Kxe6 (59. Ke4 Qb1+ 60. Ke3 Qe1+ 61. Kd4 Qb4+ 62. Ke5 Qc3+ 63. Kxe6 Qxb3+ 64. Ke7 Qa3+ 65. Ke6 Qb3+ 66. Ke7 Qa3+ 67. Ke6 Qb3+ $11) 59... Qxb3+ 60. Ke7 Qa3+ 61. Ke6 Qb3+ 62. Ke7 Qa3+ 63. Ke6 Qb3+ $11) 54... Kg4 {[%emt 0:00:32]} 55. Qxg6+ {[%emt 0:00:00]} (55. h8=R Qxg2+ 56. Ke1 Qg1+ 57. Ke2 Qg2+ 58. Kd3 Qd5+ 59. Kc3 Qc5+ 60. Kd3 Qd5+ 61. Ke3 Qf3+ 62. Kd4 Qd5+ 63. Ke3 (63. Kc3 Qc5+ 64. Kd2 Qd4+ 65. Kc1 Qe3+ 66. Kd1 Qf3+ 67. Ke1 Qe3+ 68. Kf1 Qf3+ 69. Kg1 Qe3+ 70. Kg2 Qe4+ 71. Kf2 Qf3+ 72. Kg1 Qe3+ 73. Kg2 Qe4+ 74. Kf1 Qf3+ 75. Kg1 $11) 63... Qf3+ 64. Kd4 Qd5+ 65. Ke3 $11 (65. Kc3 Qc5+ 66. Kd3 Qd5+ $11)) 55... Kxf4 {[%emt 0:02:41]} 56. Qf6+ {[%emt 0:00:00]} ({Inferior is} 56. h8=R Qe3+ 57. Kf1 (57. Kd1 Qd4+ 58. Ke1 Qe3+ 59. Kf1 Qc1+ 60. Kf2 Qe3+ 61. Kf1 Qc1+ 62. Kf2 Qe3+ 63. Kf1 $11) 57... Qc1+ 58. Ke2 Qe3+ 59. Kf1 (59. Kd1 Qd4+ 60. Ke2 Qe3+ $11) 59... Qc1+ 60. Ke2 Qe3+ $11) 56... Kg4 {[%emt 0:01:57]} 57. Qf3+ {[%emt 0:00:00] Artfully played by Sargissyan.   Weighted Error Value: White=0.17 (very precise) /Black=0.47} 1-0

[Event "1st FIDE Olympiad DIS 2023"]
[Site "Belgrade"]
[Date "2023.02.04"]
[Round "6.6"]
[White "Koessler, Wolfgang"]
[Black "Mitrovic, Stefan"]
[Result "0-1"]
[ECO "C18"]
[WhiteElo "1746"]
[BlackElo "1807"]
[Annotator "NA RC COMBH"]
[PlyCount "138"]
[EventDate "2023.01.30"]
[EventType "team-tourn"]
[EventCountry "SRB"]
[SourceTitle "playchess.com"]
[Source "ChessBase"]
[SourceQuality "1"]
[WhiteTeam "Germany"]
[BlackTeam "Serbia"]
[WhiteTeamCountry "GER"]
[BlackTeamCountry "SRB"]
[TimeControl "40/5400+30:1800+30"]

1. e4 {[%emt 0:00:05]} e6 {[%emt 0:00:06]} 2. d4 {[%emt 0:00:15]} d5 {[%emt 0:00:02]} 3. Nc3 {[%emt 0:00:12]} Bb4 {[%emt 0:00:03]} 4. e5 {[%emt 0:00:41]} c5 {[%emt 0:00:08]} 5. a3 {[%emt 0:00:12]} Ba5 {[%emt 0:00:02]} 6. b4 {[%emt 0:01:29]} cxd4 {[%emt 0:00:08]} 7. Nb5 {[%emt 0:00:19]} Bc7 {[%emt 0:00:01]} 8. f4 {[%emt 0:00:32]} Bd7 {[%emt 0:00:09]} 9. Nf3 {[%emt 0:01:30]} Nc6 {[%emt 0:02:12]} 10. Bd3 {[%emt 0:01:17]} a6 {[%emt 0:00:13]} 11. Nxc7+ {[%emt 0:03:23]} Qxc7 {[%emt 0:00:09]} 12. Bb2 {[%emt 0:00:07]} Nge7 {[%emt 0:02:32]} 13. Qe2 {[%emt 0:04:49]} h6 {[%emt 0:08:11]} 14. O-O {[%emt 0:05:08]} Nf5 {[%emt 0:00:59]} 15. Bxf5 {[%emt 0:00:40]} exf5 {[%emt 0:00:12]} 16. Qf2 {[%emt 0:02:55]} Rc8 {[%emt 0:00:47]} 17. Rac1 {[%emt 0:00:44]} O-O {[%emt 0:02:50]} 18. Nxd4 {[%emt 0:16:49]} Nxd4 {[%emt 0:06:41]} 19. Bxd4 {[%emt 0:00:20]} Qc4 {[%emt 0:01:29]} 20. Rfd1 {[%emt 0:07:34]} Rfe8 {[%emt 0:05:15]} 21. Bc5 {[%emt 0:01:47]} Re6 {[%emt 0:03:25]} 22. Rd4 {[%emt 0:11:16]} Qa2 {[%emt 0:02:32]} 23. c4 {[%emt 0:03:53]} Qxa3 {[%emt 0:02:34]} 24. Rcd1 {[%emt 0:00:18]} Rg6 {[%emt 0:06:59]} 25. cxd5 {[%emt 0:01:04]} b6 {[%emt 0:05:47]} 26. Bd6 {[%emt 0:01:17]} Bb5 {[%emt 0:02:41]} 27. R4d2 {[%emt 0:05:50]} Rc3 {[%emt 0:07:01]} 28. Qxb6 {[%emt 0:07:24]} Rc1 {[%emt 0:02:34]} 29. Qf2 {[%emt 0:02:35]} Ba4 {[%emt 0:08:21]} 30. Re1 {[%emt 0:00:14]} Bb5 {[%emt 0:00:53]} 31. Rdd1 {[%emt 0:06:29]} Rc3 {[%emt 0:01:45]} 32. Bc5 {[%emt 0:01:44]} Rf3 {[%emt 0:03:37]} 33. Qd2 {[%emt 0:05:19]} Rd3 {[%emt 0:02:00]} 34. Qc1 {[%emt 0:00:11]} Qa2 {[%emt 0:01:36]} 35. Bf2 {[%emt 0:00:48]} Qxd5 {[%emt 0:00:48]} 36. g3 {[%emt 0:00:36]} Bc6 {[%emt 0:00:43]} 37. Kf1 {[%emt 0:00:17]} Qg2+ {[%emt 0:00:44]} 38. Ke2 {[%emt 0:00:11]} Rxd1 {[%emt 0:06:39]} 39. Rxd1 {[%emt 0:00:07]} Bf3+ {[%emt 0:00:18]} 40. Ke1 {[%emt 0:00:10]} Qh1+ {[%emt 0:03:13]} 41. Kd2 {[%emt 0:32:37]} Qxd1+ {[%emt 0:31:18]} 42. Qxd1 {[%emt 0:00:07]} Bxd1 {[%emt 0:00:02]} 43. Kxd1 {[%emt 0:00:06]} Kf8 {[%emt 0:00:26]} 44. Kc2 {[%emt 0:01:10]} Ke7 {[%emt 0:00:16]} 45. Kb3 {[%emt 0:00:31]} Kd7 {[%emt 0:00:19]} 46. Ka4 {[%emt 0:00:18]} Kc6 {[%emt 0:01:05]} 47. Ka5 {[%emt 0:00:18]} Kb7 {[%emt 0:00:37]} 48. Bc5 {[%emt 0:06:25]} Rg4 {[%emt 0:04:26]} 49. Bf2 {[%emt 0:00:00]} h5 {[%emt 0:00:00]} 50. b5 {[%emt 0:00:00]} axb5 {[%emt 0:00:00]} 51. Kxb5 {[%emt 0:00:00]} Kc7 {[%emt 0:00:00]} 52. Kc5 {[%emt 0:00:00]} Kd7 {[%emt 0:00:00]} 53. Kd4 {[%emt 0:00:00]} h4 {[%emt 0:00:00]} 54. Ke3 {[%emt 0:00:00]} h3 {[%emt 0:00:00]} 55. Kf3 {[%emt 0:00:00]} Ke6 {[%emt 0:00:00]} 56. Bb6 {[%emt 0:00:00]} Rg6 {[%emt 0:00:00]} 57. Bd8 {[%emt 0:00:00]} Kd5 {[%emt 0:00:00]} 58. Bg5 {[%emt 0:00:00]} Rb6 {[%emt 0:00:00]} 59. Bd8 {[%emt 0:00:31]} Rb3+ {[%emt 0:00:00]} 60. Kf2 {[%emt 0:00:06]} Ke4 {[%emt 0:00:00]} 61. Ba5 {[%emt 0:00:53]} Rb2+ {[%emt 0:00:00]} 62. Kg1 {[%emt 0:00:10]} Rg2+ {[%emt 0:00:00]} 63. Kh1 {[%emt 0:00:02]} Ra2 {[%emt 0:00:00]} 64. Bb6 {[%emt 0:00:13]} Ra1+ {[%emt 0:00:00]} 65. Bg1 {[%emt 0:00:05]} Kf3 {[%emt 0:00:00]} 66. g4 {[%emt 0:00:22]} Kxg4 {[%emt 0:00:00]} 67. e6 {[%emt 0:00:13]} Rxg1+ {[%emt 0:00:00]} 68. Kxg1 {[%emt 0:00:17]} fxe6 {[%emt 0:00:00]} 69. Kf2 {[%emt 0:00:16]} Kxf4 {[%emt 0:00:00]} 0-1

[Event "1st FIDE Olympiad DIS 2023"]
[Site "Belgrade"]
[Date "2023.02.04"]
[Round "6.7"]
[White "Paal-Szucs, Attila"]
[Black "Campos, Eugenio"]
[Result "1/2-1/2"]
[ECO "B53"]
[WhiteElo "2141"]
[BlackElo "2227"]
[Annotator "TA"]
[PlyCount "96"]
[EventDate "2023.01.30"]
[EventType "team-tourn"]
[EventCountry "SRB"]
[SourceTitle "playchess.com"]
[Source "ChessBase"]
[SourceQuality "1"]
[WhiteTeam "Hungary"]
[BlackTeam "Angola"]
[WhiteTeamCountry "HUN"]
[BlackTeamCountry "ANG"]
[TimeControl "40/5400+30:1800+30"]

{[%evp 9,96,8,10,0,7,0,0,15,1,0,4,4,24,6,16,13,12,4,3,0,0,0,0,-7,0,-5,-6,-8,0,-6,-13,-13,0,-114,-103,-105,-106,-154,-154,-155,-156,-150,-142,-143,-114,-111,-109,-122,-89,-141,-107,-194,-183,-187,-172,-222,-231,-285,-288,-284,-228,-281,-274,-250,-92,-98,-5,-12,0,-8,-5,-22,-22,-22,0,0,0,0,0,0,0,0,0,0,0,0,0,0,0]} 1. e4 {[%emt 0:00:07]} c5 {[%emt 0:00:09]} 2. Nf3 {[%emt 0:00:15]} d6 {[%emt 0:00:09]} 3. d4 {[%emt 0:00:09]} Nf6 {[%emt 0:00:06]} 4. Nc3 {[%emt 0:02:21]} cxd4 {[%emt 0:00:13]} 5. Qxd4 {[%emt 0:00:11]} Nc6 {[%emt 0:01:01]} 6. Qd3 {[%emt 0:02:37] B53: Sicilian: 2...d6: Lines with Qxd4.} g6 {[%emt 0:01:28]} 7. Nd5 {[%emt 0:01:29]} Bg7 {[%emt 0:02:04]} 8. c3 {[%emt 0:00:15]} O-O {[%emt 0:00:28]} 9. Bg5 {[%emt 0:00:52]} Nxd5 {[%emt 0:08:03]} 10. exd5 {[%emt 0:00:42] [#]} Nb8 $146 {[%emt 0:01:26][%cal Bc6b8,Bb8d7,Bd7f6][%mdl 32]} ({Predecessor:} 10... Ne5 11. Nxe5 Bxe5 12. Qd2 Bd7 13. a4 Rc8 14. Be2 Re8 15. Be3 e6 16. dxe6 Rxe6 {1-0 Xiong,J (2690)-Dominguez Perez,L (2754) Saint Louis Blitz 2022 (6)}) 11. Qd2 {[%emt 0:02:04]} Re8 {[%emt 0:00:17]} 12. Be2 {[%emt 0:00:26]} Nd7 {[%emt 0:00:24]} 13. O-O {[%emt 0:01:21]} Nf6 {[%emt 0:00:13]} 14. Bb5 {[%emt 0:02:33]} (14. Rfe1 {is interesting.} Ne4 15. Qf4 Nxg5 16. Nxg5 Bf6 17. Qh4) 14... Bd7 {[%emt 0:00:32]} 15. Bxd7 {[%emt 0:00:13]} Qxd7 {[%emt 0:00:02]} 16. Rfe1 {[%emt 0:00:13]} Rac8 {[%emt 0:00:58]} 17. Rad1 {[%emt 0:00:24]} Rc5 {[%emt 0:01:08]} 18. Bxf6 {[%emt 0:02:16]} Bxf6 {[%emt 0:00:06]} 19. Ng5 {[%emt 0:00:26]} Rc4 {[%emt 0:10:03][%cal Bc5c4,Bc4a4,Ba4a2][%mdl 32]} 20. Ne4 {[%emt 0:00:38]} Bg7 {[%emt 0:00:33]} 21. Qf4 {[%emt 0:05:11]} (21. Qd3 $11 {remains equal.} Rec8 22. a3) 21... Ra4 $17 {[%emt 0:05:26] Threatens to win with ...f5.} 22. b3 {[%emt 0:05:07]} Rxa2 {[%emt 0:00:33]} 23. Ng5 {[%emt 0:00:14]} (23. c4 $142) 23... Qf5 {[%emt 0:01:55]} (23... Bxc3 $2 {is a self mate.} 24. Qxf7+ Kh8 25. Qxh7#) 24. Qxf5 {[%emt 0:02:17]} gxf5 {[%emt 0:00:07]} 25. c4 {[%emt 0:00:07]} Bc3 {[%emt 0:03:55]} 26. Re3 {[%emt 0:00:29]} Bd4 {[%emt 0:00:36][%mdl 64] Deflection, Back Rank} 27. Rf3 {[%emt 0:00:38][%cal Of3f5]} h6 $40 {[%emt 0:00:17][%mdl 128] White is in trouble.} 28. Nh3 {[%emt 0:00:26][%cal Of3f5]} e6 {[%emt 0:00:16][%cal Oe6d5]} 29. g3 {[%emt 0:01:36]} (29. Kf1 $142 Bc5 30. Nf4) 29... Ra1 {[%emt 0:04:56]} 30. Rfd3 {[%emt 0:02:55]} (30. Rxa1 $17 {was worth a try.} Bxa1 31. Kg2) 30... Rxd1+ $19 {[%emt 0:00:38]} 31. Rxd1 {[%emt 0:01:51][%mdl 4096] Endgame KRB-KRN} e5 {[%emt 0:00:18][%cal Ob7b5]} 32. Kg2 {[%emt 0:00:40] [#]} (32. Nf4 $142) 32... b5 $1 {[%emt 0:00:08][%mdl 512]} 33. Ng1 {[%emt 0:06:08]} (33. cxb5 Rc8) 33... bxc4 {[%emt 0:00:16]} 34. bxc4 {[%emt 0:00:12]} Rc8 {[%emt 0:00:09]} 35. Rc1 {[%emt 0:00:10]} a5 {[%emt 0:01:12]} 36. Nf3 {[%emt 0:00:10] [#]} Bb2 {[%emt 0:00:30]} (36... Bc5 $1 $19 {is more deadly.} 37. Nh4 Ra8 38. Nxf5 a4) 37. Rc2 $17 {[%emt 0:07:40] [#]} Rb8 {[%emt 0:00:55]} (37... Ba3 $1 $17 {...Kg7 is the strong threat.} 38. Nh4 Bb4) 38. c5 $11 {[%emt 0:02:11] The position is equal.} dxc5 {[%emt 0:00:36]} 39. Rxc5 {[%emt 0:00:01]} a4 {[%emt 0:00:17]} 40. d6 {[%emt 0:00:29][%cal Od6d7] And now d7! would win.} Rd8 {[%emt 0:02:20] Inhibits d7.} 41. Nxe5 {[%emt 0:31:46]} a3 {[%emt 0:31:26]} (41... Rxd6 {simplifies} 42. Nc4 Ra6 43. Nxb2 a3) 42. d7 $1 {[%emt 0:01:43] Strongly threatening Rc8.} Bxe5 {[%emt 0:02:01][%mdl 64] Remove Defender} 43. Rxe5 {[%emt 0:00:09] White threatens Re8+ and mate.} Rxd7 {[%emt 0:00:04] KR-KR} 44. Ra5 {[%emt 0:00:09] Prevents Ra7.} Rd3 {[%emt 0:00:15][%cal Of5f4]} 45. Rxf5 {[%emt 0:00:13]} a2 {[%emt 0:00:14]} 46. Ra5 {[%emt 0:00:02]} Rd2 {[%emt 0:00:09]} 47. Kf3 {[%emt 0:00:06]} Kf8 {[%emt 0:00:33]} 48. Ke3 {[%emt 0:01:29]} Rb2 {[%emt 0:04:53] And White is the lucky defender.   Weighted Error Value: White=0.16 (very precise) /Black=0.12 (very precise)} 1/2-1/2

[Event "1st FIDE Olympiad DIS 2023"]
[Site "Belgrade"]
[Date "2023.02.04"]
[Round "6.7"]
[White "Bulatovic, Luka"]
[Black "Dorner, Matthias"]
[Result "0-1"]
[ECO "B15"]
[WhiteElo "1707"]
[BlackElo "2180"]
[Annotator "TA"]
[PlyCount "118"]
[EventDate "2023.01.30"]
[EventType "team-tourn"]
[EventCountry "SRB"]
[SourceTitle "playchess.com"]
[Source "ChessBase"]
[SourceQuality "1"]
[WhiteTeam "Serbia"]
[BlackTeam "Germany"]
[WhiteTeamCountry "SRB"]
[BlackTeamCountry "GER"]
[TimeControl "40/5400+30:1800+30"]

{[%evp 15,118,0,0,0,2,9,10,0,0,0,15,8,0,3,4,0,-11,-35,-25,-34,-34,-46,-26,-43,-45,-52,-52,-51,-55,-196,-45,-83,-81,-74,-83,-145,-145,-136,-141,-127,-75,-87,-76,-179,-177,-198,-190,-303,-295,-296,-296,-258,-162,-148,-125,-159,-154,-168,-163,-154,-148,-118,-104,-209,-183,-157,-158,-156,-118,-90,-98,-175,-164,-180,-206,-12840,-12840,-12841,-12841,-12841,-12842,-12844,-12845,-12850,-12850,-12850,-27999,-27999,-27999,-27999,-27999,-27999,-27999,-27999,-27999,-27999,-27999,-27999,-27999,-27999,-27999,-27999,-27999,-27999,-27999]} 1. e4 {[%emt 0:01:19]} c6 {[%emt 0:00:08]} 2. d4 {[%emt 0:00:37]} d5 {[%emt 0:00:06]} 3. Nc3 {[%emt 0:01:27]} dxe4 {[%emt 0:00:04]} 4. Nxe4 {[%emt 0:00:28]} Nf6 {[%emt 0:00:08]} 5. Nxf6+ {[%emt 0:01:23]} exf6 {[%emt 0:00:03]} 6. Nf3 {[%emt 0:00:22]} Bd6 {[%emt 0:00:49]} 7. Bd3 {[%emt 0:01:04] 7.Bd3 is better than 7.Be2.} O-O {[%emt 0:00:09]} 8. O-O {[%emt 0:00:22]} Bg4 {[%emt 0:00:10]} 9. Re1 {[%emt 0:01:57] B15: Caro-Kann: 3 Nc3: 3...g6 and 3...dxe4 4 Nxe4 Nf6 5 Nxf6+ exf6.} Nd7 {[%emt 0:00:24]} 10. c3 {[%emt 0:01:13]} Re8 {[%emt 0:00:35]} 11. Rxe8+ {[%emt 0:02:04] The position is equal.} Qxe8 {[%emt 0:00:06]} 12. Be3 {[%emt 0:01:23] [#]} Qe7 $146 {[%emt 0:01:50]} ({Predecessor:} 12... Nf8 13. Be2 Qd7 14. Nd2 Bf5 15. c4 Bc7 16. Bf3 Ng6 17. g3 Ne7 18. Nb3 b6 {1-0 Kazarjan,G (1661)-Kumar,P (2042) NED-ch U14 Almelo 2022 (1)}) 13. h3 {[%emt 0:00:54]} Bh5 {[%emt 0:00:08]} 14. g4 {[%emt 0:02:35]} Bg6 {[%emt 0:00:05]} 15. Bxg6 {[%emt 0:00:13]} hxg6 {[%emt 0:00:02]} 16. Qd2 {[%emt 0:00:38]} Qe4 {[%emt 0:01:09]} 17. Ne1 {[%emt 0:02:04]} Re8 {[%emt 0:00:12]} 18. Qd3 {[%emt 0:02:40]} Qe6 {[%emt 0:00:44]} 19. Ng2 {[%emt 0:01:29][%cal Od4d5]} f5 {[%emt 0:01:49]} 20. g5 {[%emt 0:03:06]} Qd5 {[%emt 0:00:55]} 21. Bf4 {[%emt 0:05:31] Prevents Ne5. White is weak on the light squares} Nc5 {[%emt 0:02:39]} 22. Qc2 {[%emt 0:05:04]} (22. Qg3 $15 Ne4 23. Qh4) 22... Ne4 $2 {[%emt 0:03:11]} (22... Bxf4 $1 $19 23. Nxf4 Qf3) 23. Re1 {[%emt 0:03:37]} Bxf4 {[%emt 0:00:47]} ({But not} 23... Qxa2 $6 24. Rxe4 fxe4 25. Bxd6 $11) 24. Nxf4 {[%emt 0:00:34]} Qxa2 {[%emt 0:01:42] Black is more active.} 25. f3 {[%emt 0:01:49]} (25. h4 $142) 25... Nd6 $17 {[%emt 0:00:06]} 26. Rxe8+ {[%emt 0:00:19]} Nxe8 {[%emt 0:00:06][%mdl 4096] Endgame KQN-KQN} 27. Qe2 {[%emt 0:00:19]} Kf8 {[%emt 0:00:24]} (27... Nc7 $142 {Strongly threatening ...Qa1+.} 28. Kg2 Nd5) 28. h4 {[%emt 0:00:57]} Qa5 {[%emt 0:02:23]} 29. h5 {[%emt 0:02:21]} (29. Nd3 $17 {was called for.}) 29... Qd8 $19 {[%emt 0:00:18]} 30. Qg2 {[%emt 0:00:55]} Qe7 {[%emt 0:02:09] Threatens to win with ...Qe3+.} 31. Kh2 {[%emt 0:04:02]} (31. Kf2 {might work better.}) 31... gxh5 {[%emt 0:00:57]} 32. Nxh5 {[%emt 0:01:02]} g6 {[%emt 0:00:28]} 33. Nf4 {[%emt 0:01:08]} Qd6 {[%emt 0:00:51]} 34. Qg3 {[%emt 0:00:50]} Ng7 {[%emt 0:00:31]} 35. Kg2 {[%emt 0:00:59]} Ke7 {[%emt 0:01:01] ...Ne6 is the strong threat.} 36. Nd3 {[%emt 0:01:22]} Qxg3+ {[%emt 0:00:23]} 37. Kxg3 {[%emt 0:00:09] KN-KN} Ne6 {[%emt 0:00:38]} 38. f4 {[%emt 0:00:56]} f6 {[%emt 0:00:14] Inhibits Ne5.} 39. Kh4 {[%emt 0:02:12]} (39. gxf6+ $17 {was forced.} Kxf6 40. Ne5) 39... Kf7 {[%emt 0:01:46]} 40. gxf6 {[%emt 0:01:53]} Kxf6 {[%emt 0:00:06][%cal Oe6f4] Hoping for ...Nxf4!} 41. Kg3 {[%emt 0:00:19]} g5 {[%emt 0:01:09]} 42. fxg5+ {[%emt 0:00:22]} Kxg5 {[%emt 0:00:35] ...f4+ would be deadly.} 43. Ne5 {[%emt 0:00:24] [#]} (43. Kf3 $17 {was worth a try.}) 43... f4+ $1 {[%emt 0:00:27]} 44. Kf3 {[%emt 0:00:31]} Kf5 {[%emt 0:00:08] aiming for ...c5.} 45. Nf7 $2 {[%emt 0:03:49] [#]} (45. Nc4 Ng5+ 46. Kf2) 45... Ng5+ $1 {[%emt 0:00:06]} 46. Nxg5 Kxg5 {KP-KP} 47. c4 {[%emt 0:00:23]} Kf5 {[%emt 0:00:50]} 48. d5 {[%emt 0:00:22]} cxd5 {[%emt 0:00:14]} 49. cxd5 {[%emt 0:00:06] K3P-KPP} Ke5 {[%emt 0:00:07]} 50. d6 {[%emt 0:00:18]} Kxd6 {[%emt 0:00:05]} 51. Kxf4 {[%emt 0:00:16] KPP-KP. Black mates.} Kc5 {[%emt 0:00:10]} 52. Ke3 {[%emt 0:00:12]} Kc4 {[%emt 0:00:17]} 53. Kd2 {[%emt 0:00:09]} Kb3 {[%emt 0:00:07]} 54. Kc1 {[%emt 0:00:26]} a5 {[%emt 0:00:12][%cal Ba7a5,Ba5a4,Ba4a3][%mdl 32]} 55. Kb1 {[%emt 0:00:51]} b5 {[%emt 0:00:14][%cal Bb7b5,Bb5b4][%mdl 32]} 56. Ka1 {[%emt 0:00:21]} b4 {[%emt 0:00:17]} 57. Kb1 {[%emt 0:00:36]} a4 58. Ka1 {[%emt 0:00:22]} Kc2 {[%emt 0:00:01]} 59. Ka2 {[%emt 0:00:37]} a3 {[%emt 0:00:05] Weighted Error Value: White=0.34/Black=0.11 (very precise)} 0-1